Cogmind - Beta 9.4 @@@ ROGUE MODE // 2020.03.23 @ 18:36:23 Player: Nalzok Result: Destroyed self with Shock Bomb Launcher Performance ------------- Evolutions (0) 0 Regions Visited (4) 800 Robots Destroyed (13) 65 Value Destroyed (302) 302 Prototype IDs (22) 440 Alien Tech Used (0) 0 Bonus (321) 321 TOTAL SCORE: 1928 Bonus ------- Follower Combat Kills 21 Aligned with FarCom 300 Cogmind --------- Core Integrity 0/250 Matter 270/300 Energy 39/100 System Corruption 0% Temperature Cool (0) Movement Core (450) Ox8 Location -9/Mines Parts ------- > --- POWER (1) -------- (None) > --- PROPULSION (2) --- (None) > --- UTILITY (2) ------ Large Storage Unit Improved Power Shielding > --- WEAPON (2) ------- Minigun Shock Bomb Launcher > --- INVENTORY (10) --- Flying Fortress v7 Humpback Hacking Suite Heavy Particle Cannon Scythe Peak State ------------ > --- POWER ------------ Ion Engine > --- PROPULSION ------- Aluminum Leg Aluminum Leg > --- UTILITY ---------- Large Storage Unit Improved Power Shielding > --- WEAPON ----------- EM Pulse Cannon Minigun > --- INVENTORY -------- Flying Fortress v7 Humpback Hacking Suite Heavy Particle Cannon Shock Bomb Launcher Scythe [Rating: 17] Favorites ----------- Power Ion Engine Engine Ion Engine Propulsion Aluminum Leg Leg Aluminum Leg Utility Improved Power Shielding Storage Large Storage Unit Processor Signal Interpreter Protection Improved Power Shielding Weapon Minigun Energy Cannon EM Pulse Cannon Ballistic Gun Minigun Launcher Shock Bomb Launcher Build | -11 -10 -10 -10 -9 ------- Run | Scr Mat Min Exi Min Slots Evolved . | . . . . . Power . | . . . . . Propulsion . | . . . . . Utility . | . . . . . Weapon . | . . . . . Parts Attached 11 | . 3 5 1 2 Power . | . . . . . Engine . | . . . . . Core . | . . . . . Reactor . | . . . . . Propulsion 5 | . 2 2 . 1 Treads . | . . . . . Leg 5 | . 2 2 . 1 Wheel . | . . . . . Hover . | . . . . . Flight . | . . . . . Utility 3 | . 1 1 1 . Device . | . . . . . Storage 1 | . . . 1 . Processor 1 | . 1 . . . Hackware . | . . . . . Protection 1 | . . 1 . . Artifact . | . . . . . Weapon 3 | . . 2 . 1 Energy Gun . | . . . . . Energy Cannon 1 | . . 1 . . Ballistic Gun 1 | . . 1 . . Ballistic Cannon . | . . . . . Launcher 1 | . . . . 1 Special Weapon . | . . . . . Impact Weapon . | . . . . . Slashing Weapon . | . . . . . Piercing Weapon . | . . . . . Special Melee Weapon . | . . . . . Unidentified Prototypes . | . . . . . Parts Lost 4 | . . . . 4 Power 1 | . . . . 1 Propulsion 2 | . . . . 2 Utility . | . . . . . Weapon 1 | . . . . 1 Highest Loss Streak 2 | . . . . 2 Average Slot Usage (%) 99 | . 98 100 100 98 Engine 14 | . 14 14 14 14 Leg 27 | . 28 28 28 26 Storage 14 | . 14 14 14 14 Processor 2 | . 12 3 . . Protection 11 | . . 10 14 14 Energy Cannon 10 | . . 10 14 12 Ballistic Gun 16 | . 28 17 14 14 Naked Turns . | . . . . . Heaviest Build 32 | 12 12 20 32 32 Greatest Support 20 | 20 20 20 20 20 Greatest Overweight (x) 3 | . . . 1 3 Average Overweight (x) . | . . . . 1 Largest Inventory Capacity 10 | 6 6 6 10 10 Average Capacity 8 | 6 6 6 8 10 Most Carried 10 | 6 6 6 10 10 Average Carried 7 | 4 4 5 7 9 Final Capacity 10 | 6 6 6 10 10 Final Carried 10 | 2 6 6 10 9 Class Distribution -------------------- 100% | Mutant Dominant Class ---------------- Mutant | -10/Materials Mutant | -10/Mines Mutant | -10/Exiles Mutant | -9/Mines Resources | -11 -10 -10 -10 -9 ----------- Run | Scr Mat Min Exi Min Matter Collected 470 | 190 140 40 . 100 Remotely . | . . . . . Salvage Created 489 | . 250 108 . 131 Parts 18 | . 10 4 . 4 Haulers Intercepted . | . . . . . Recyclers Shooed 3 | . 2 . . 1 Parts Field Recycled . | . . . . . Retrieved Matter . | . . . . . Parts Self-Destructed . | . . . . . Prevented . | . . . . . Kills | -11 -10 -10 -10 -9 ------- Run | Scr Mat Min Exi Min Combat Hostiles Destroyed 10 | . 2 2 . 6 Guns 4 | . 2 2 . . Cannons 4 | . . . . 4 AOE 2 | . . . . 2 Classes Destroyed 6 | . 2 . . 4 Builder 1 | . . . . 1 Recycler 2 | . 2 . . . Swarmer 1 | . . . . 1 Grunt 4 | . 2 2 . . Demolisher 2 | . . . . 2 Assembled 3 | . . . . 3 Best Kill Streak 3 | . 2 2 . 3 Combat Bots Only 3 | . 1 2 . 3 Max Kills in Single Turn 2 | . 1 1 . 2 Gunslinging . | . . . . . Exploded 2 | . . . . 2 Melee . | . . . . . Uniques/NPCs Destroyed . | . . . . . Combat | -11 -10 -10 -10 -9 -------- Run | Scr Mat Min Exi Min Damage Taken 1108 | . 191 17 . 900 Core 253 | . 43 . . 210 Absorbed by Shields . | . . . . . Core Remaining (%) 100 | 100 . . . . Volleys Fired 45 | . 25 5 . 15 Largest 2 | . 2 2 . 2 Hottest 88 | . 40 40 . 88 Shots Fired 89 | . 50 10 . 29 Gun 75 | . 50 10 . 15 Cannon 9 | . . . . 9 Launcher 5 | . . . . 5 Special . | . . . . . Kinetic 75 | . 50 10 . 15 Thermal . | . . . . . Explosive . | . . . . . Electromagnetic 14 | . . . . 14 Robot Hit Streak 8 | . 8 3 . 4 Robot Miss Streak 4 | . 2 2 . 4 Penetration Max . | . . . . . Secondary Targets . | . . . . . Shots Hit Robots 55 | . 35 6 . 14 Core Hits 25 | . 9 5 . 11 Critical Hits 1 | . . . . 1 Critical Kills . | . . . . . Critical Parts Destroyed 1 | . . . . 1 Melee Attacks . | . . . . . Impact . | . . . . . Slashing . | . . . . . Piercing . | . . . . . Sneak Attacks . | . . . . . Combat Hostiles . | . . . . . Follow-up Attacks . | . . . . . Damage Inflicted 896 | . 413 72 . 411 Guns 581 | . 413 72 . 96 Cannons 156 | . . . . 156 Explosions 159 | . . . . 159 Melee . | . . . . . Ramming . | . . . . . Kinetic 581 | . 413 72 . 96 Thermal . | . . . . . Explosive . | . . . . . Electromagnetic 315 | . . . . 315 Impact . | . . . . . Slashing . | . . . . . Piercing . | . . . . . Highest Corruption . | . . . . . Average Corruption . | . . . . . Corruption Purged . | . . . . . Overload Shots . | . . . . . Overflow Damage 16 | . . . . 16 Projectiles . | . . . . . Explosions 16 | . . . . 16 Melee . | . . . . . Knockbacks . | . . . . . Impact . | . . . . . Kinetic . | . . . . . Secondary . | . . . . . Self-Inflicted Damage 19 | . . . . 19 Shots 1 | . . . . 1 Rammed . | . . . . . Targets Rammed . | . . . . . Kicked . | . . . . . Crushed . | . . . . . Highest Temperature 144 | . 12 9 . 144 Average Temperature 39 | . 6 9 . 53 Received Heat Transfer 137 | . 108 9 . 20 Siege Activations . | . . . . . Robots Corrupted . | . . . . . Combat Hostiles . | . . . . . Parts Fried . | . . . . . Impact Corruptions . | . . . . . Robots Melted . | . . . . . Combat Hostiles . | . . . . . Parts Melted 1 | . . . . 1 Heat Transferred . | . . . . . Parts Sabotaged . | . . . . . Parts Stolen . | . . . . . Parts Stripped . | . . . . . Power Chain Reactions . | . . . . . Missiles Intercepted . | . . . . . Alert | -11 -10 -10 -10 -9 ------- Run | Scr Mat Min Exi Min Peak Influence 136 | . 70 77 . 136 Average Influence 51 | . 21 72 . 51 Maximum Alert Level . | . . . . . Low Security (%) 100 | 100 100 100 . 100 Level 1 . | . . . . . Level 2 . | . . . . . Level 3 . | . . . . . Level 4 . | . . . . . Level 5 . | . . . . . High Security . | . . . . . Max Security . | . . . . . Squads Dispatched 4 | . 3 1 . . Investigation 3 | . 2 1 . . Extermination . | . . . . . Reinforcement 1 | . 1 . . . Assault . | . . . . . Garrison . | . . . . . Intercept . | . . . . . Construction Impeded . | . . . . . Haulers Reinforced . | . . . . . Stealth | -11 -10 -10 -10 -9 --------- Run | Scr Mat Min Exi Min Distress Signals 1 | . 1 . . . Communications Jammed . | . . . . . Distress Signals . | . . . . . Times Spotted 32 | . 9 2 . 21 Peak Tracking Total 8 | . 4 2 . 8 Tactical Retreats 3 | . 1 . . 2 Traps | -11 -10 -10 -10 -9 ------- Run | Scr Mat Min Exi Min Traps Triggered 1 | . 1 . . . Indirectly . | . . . . . Trap Hack Attempts . | . . . . . Triggered . | . . . . . Disarmed . | . . . . . Reprogrammed . | . . . . . Reused . | . . . . . Traps Extracted . | . . . . . Installed . | . . . . . Triggered . | . . . . . Machines | -11 -10 -10 -10 -9 ---------- Run | Scr Mat Min Exi Min Machines Disabled 2 | . . . . 2 Max in Single Turn 1 | . . . . 1 Machines Sabotaged . | . . . . . Garrisons Compromised . | . . . . . Overloaded Fab Kills . | . . . . . Fab Network Shutdowns . | . . . . . Hacking | -11 -10 -10 -10 -9 --------- Run | Scr Mat Min Exi Min Machines Accessed 5 | . 2 1 2 . Terminals 2 | . 2 . . . Fabricators . | . . . . . Repair Stations . | . . . . . Recycling Units . | . . . . . Scanalyzers . | . . . . . Garrison Access . | . . . . . Total Hacks 9 | . 6 1 2 . Successful 6 | . 3 1 2 . Failed 3 | . 3 . . . Catastrophic 1 | . 1 . . . Database Lockouts . | . . . . . Manual 4 | . 3 . 1 . Terminals 6 | . 6 . . . Fabricators . | . . . . . Repair Stations . | . . . . . Recycling Units . | . . . . . Scanalyzers . | . . . . . Garrison Access . | . . . . . Terminal Hacks 4 | . 1 1 2 . Record 1 | . . . 1 . Open Door 1 | . . 1 . . Unreport Threat 1 | . 1 . . . EX-Prototype ID Bank 1 | . . . 1 . Fabricator Hacks . | . . . . . Repair Station Hacks . | . . . . . Recycling Unit Hacks . | . . . . . Scanalyzer . | . . . . . Garrison Access Hacks . | . . . . . Unauthorized Hacks 5 | . 5 . . . Terminals 2 | . 2 . . . Botnet 1 | . 1 . . . Operators 1 | . 1 . . . Fabricators . | . . . . . Repair Stations . | . . . . . Recycling Units . | . . . . . Scanalyzers . | . . . . . Garrison Access . | . . . . . Data Cores Recovered . | . . . . . Used . | . . . . . Hacking Detections 2 | . 2 . . . Full Trace Events 1 | . 1 . . . Feedback Events . | . . . . . Feedback Blocked . | . . . . . Robot Schematics Acquired . | . . . . . Robots Built . | . . . . . Matter . | . . . . . Time . | . . . . . Total Robot Build Rating . | . . . . . Part Schematics Acquired . | . . . . . Parts Built . | . . . . . Matter . | . . . . . Time . | . . . . . Total Part Build Rating . | . . . . . Parts Repaired . | . . . . . Time . | . . . . . Parts Recycled . | . . . . . Recycled Matter . | . . . . . Retrieved Matter . | . . . . . Retrieved Components . | . . . . . Parts Scanalyzed . | . . . . . Part Schematics Acquired . | . . . . . Parts Damaged . | . . . . . Bothacking | -11 -10 -10 -10 -9 ------------ Run | Scr Mat Min Exi Min Used RIF Installer . | . . . . . Robots Hacked . | . . . . . Non-combat . | . . . . . Combat . | . . . . . Robot Hacks Applied . | . . . . . Relay Couplers Released . | . . . . . Robots Rewired . | . . . . . Allies Hacked . | . . . . . Hacks Repelled . | . . . . . Allies | -11 -10 -10 -10 -9 -------- Run | Scr Mat Min Exi Min Total Allies 3 | . . . . 3 Largest Group 3 | . . . . 3 Highest-Rated Group 40 | . . . . 40 Highest-Rated Ally 16 | . . . . 16 Total Orders . | . . . . . Ally Attacks 12 | . . . . 12 Total Damage 121 | . . . . 121 Kills 4 | . . . . 4 Allies Corrupted . | . . . . . Allies Melted . | . . . . . Intel | -11 -10 -10 -10 -9 ------- Run | Scr Mat Min Exi Min Robot Analysis Total . | . . . . . Derelict Logs Recovered 1 | . . . . 1 Drone Launches . | . . . . . Drone Recoveries . | . . . . . Exploration | -11 -10 -10 -10 -9 ------------- Run | Scr Mat Min Exi Min Turns Passed 1723 | 5 235 341 591 551 Spaces Moved 1154 | 3 131 259 432 329 Core . | . . . . . Treads . | . . . . . Legs 1154 | 3 131 259 432 329 Wheels . | . . . . . Hover . | . . . . . Flight . | . . . . . Fastest Speed 120 | 120 120 120 120 150 Average Speed 135 | 120 120 120 135 153 Slowest Speed 210 | 120 120 120 150 210 Overloaded Moves . | . . . . . Propulsion Burnouts . | . . . . . Robots Hopped . | . . . . . Cave-ins Triggered . | . . . . . Exploration Rate (%) 40 | 2 21 52 60 65 Regions Visited 4 Branch Regions 3 Pre-discovered Areas 2 | . . 1 1 . Known Exits Taken 1 | . 1 . . . Unknown Exits Taken 3 | 1 . 1 1 . Scrap Searched 2 | . . . . 2 Spaces Dug . | . . . . . Terrain Destroyed . | . . . . . Melee . | . . . . . Projectile . | . . . . . AOE . | . . . . . Actions | -11 -10 -10 -10 -9 --------- Run | Scr Mat Min Exi Min Total 1249 | 6 164 285 441 353 Wait 6 | . . . . 6 Move 1150 | 2 130 258 431 329 Hop . | . . . . . Pick Up 14 | . 4 6 4 . Fast Attach 3 | . 1 2 . . Attach 1 | . . . . 1 Detach 1 | . . 1 . . Swap 7 | . 2 3 1 1 Drop 22 | 4 2 10 5 1 Fire 45 | . 25 5 . 15 Melee . | . . . . . Ram . | . . . . . Kick . | . . . . . Crush . | . . . . . Escape Stasis . | . . . . . Rewire . | . . . . . Trap . | . . . . . Miscellaneous . | . . . . . Route ------- -11/Scrapyard -10/Materials -10/Mines -10/Exiles -9/Mines (discovered 1 exit: [*Mat]) History --------- Turn | Location | Event 1 | -11/Scrapyard | Discovered new exit (range 3) 6 | -11/Scrapyard | Entered Materials 135 | -10/Materials | Discovered new exit (range 16) 240 | -10/Materials | Identified exit to Mines 241 | -10/Materials | Entered Mines 302 | -10/Mines | Assisted by bots powering up and referring to "LRC-V3" 317 | -10/Mines | Met a Derelict shopkeep closing up shop 324 | -10/Mines | Build established: Mutant 457 | -10/Mines | Learned location of Storage (-7) 571 | -10/Mines | Deemed a non-threat by the Exiles lab entrance 572 | -10/Mines | Discovered new exit (range 5) 582 | -10/Mines | Entered Exiles 610 | -10/Exiles | Met 8R-AWN 633 | -10/Exiles | Met EX-HEX 664 | -10/Exiles | Met EX-BIN 678 | -10/Exiles | Aligned with FarCom system 680 | -10/Exiles | Given EX-Vault access code 710 | -10/Exiles | Opened EX-Vault 749 | -10/Exiles | Warned to stay clear of 0b10 Research branches 783 | -10/Exiles | Met EX-DEC 802 | -10/Exiles | Learned location of Zion (-6) 1010 | -10/Exiles | Found Flying Fortress v7 1159 | -10/Exiles | Discovered new exit (range 11) 1173 | -10/Exiles | Left Exiles lab with Flying Fortress v7 1173 | -10/Exiles | Entered Mines 1219 | -9/Mines | Met a Derelict bent on vengeance 1254 | -9/Mines | Assisted by bots powering up and referring to "LRC-V3" 1525 | -9/Mines | Discovered new exit (range 9) 1588 | -9/Mines | Learned Materials stockpile data 1617 | -9/Mines | Assembled infested the area 1672 | -9/Mines | Core integrity fell below 50% 1679 | -9/Mines | Core integrity fell below 20% 1724 | -9/Mines | Destroyed self with Shock Bomb Launcher Last Messages --------------- 01672_ Destroyed Asb. F-torch. 01674_ The unstable cave ceiling collapses. 01674_ Aluminum Leg destroyed. 01676_ The unstable cave ceiling collapses. 01678_ D-53 Grenadier heat short circuits Broken Lgt. Deuterium Engine. 01678_ The unstable cave ceiling collapses. 01678_ Destroyed Shock Absorption System. 01679_ The unstable cave ceiling collapses. 01680_ D-53 Grenadier heat spikes uncontrollably. 01680_ D-53 Grenadier overheating. 01681_ The unstable cave ceiling collapses. 01681_ D-53 Grenadier destroyed. 01681_ Broken Lgt. Deuterium Engine melted. 01681_ D-53 Grenadier destroyed. 01683_ The unstable cave ceiling collapses. 01692_ Acquired 14 matter. 01695_ The unstable cave ceiling collapses. 01721_ Ion Engine destroyed. 01723_ Aluminum Leg destroyed. Map ----- +----------------------------------------------------+ | ????????????????? #?????????????????????????????? | | ????????????????# ##????????????????????????#???? | | ???????????????? #???????????????????????? ???? | | ???????????????? ????????????????????????# #??? | | ???????????????? #????????????????????????# #??? | | ?????###????????# #????????????????????????# #??? | | ????# ##??????## ?????????????????????????# #?? | | ???? #?????## #????????????????????###### ##? | | ???? #?????# ##??????????????###### # # ##? | | ??## #??????# ##????????????## ## # # % ##? | | ?## #??????## #??????###??## # #? | | ## #?????### < ##????## ### # #% #? | | # #?????## ## ###??# #? | | # ##????# #### ##?# ##? | | ###### ##?## #?## # # #?? | | #### #??### #=% #?? | | ##????## # ## % ###?? | | ###### #??????# # # ####???? | | ##????## #??????## # # ########? | | ###??????####### #???????## # # | | ##??????????????## #????????### # """ ""?? | | #????????????????# #??????????## %% """ ""?? | | ?????????????????# ##???????????# #### """ ""?? | | ?????????????????## #?????######## #??# | | ??????????????????# ####### r a #??#########? | | ??????????????????# @ #######???????????? | | ?????????????????# #?????????????????? | | ????????????????## ## #????????????????? | | ?#????????????????##?## #????????????????? | | #??????????????????????### ##????????????????? | | ?????????????????????????#######?????????????????? | | ?????????????????????????????????????????????????? | | | | | | | | | | | | | | | | | | | | | | | | | | | | | | | | | | | | | +----------------------------------------------------+ Best States ------------- Heat Dissipation 25 Energy Generation 10 Energy Capacity 250 Matter Stores 300 Matter Capacity 300 Sight Range 16 Terrain Scan Density 10 Power Shielding 66 Evasion (%) 40 Item Schematics ----------------- None Robot Schematics ------------------ None Fabricated ------------ Nothing Alien Tech Used ----------------- None Achievements -------------- None Challenges ------------ None Game ------ Seed TerrainArmageddonNeutralizer Manual? 0 Play Time 00:12:34 Cumulative 237.3 hours Start 2020.03.22 @ 00:29:25 End 2020.03.23 @ 18:36:23 Sessions 2 Manual Loads 0 Difficulty Rogue Special Mode None Game No. 368 Rogue 367 Adventurer 0 Explorer 1 Win Type - Total 1 Types 1/0/0/0/0/0/0 Lore% 65 Gallery% 78 Achievement% 53 Wizard Run 0 Options --------- ASCII 0 Keyboard 1 Movement Vi Keybinds 0 Fullscreen 1 Font 14/Cog Map View 72x52 Tactical HUD 1 Map Filters NONE Filters LOW_CONTRAST(13,24,33) Steam 0 RUN: 826d0d92-f3a5-45be-8d4c-7dae6014dfd0